fUST/lending_fUST_20241013
["ID","MTS","AMOUNT","RATE_DAILY","PERIOD"]
[340201142,1728831760623,-574.97231886,0.00027397,2]
[340201143,1728831760647,-279.747653,0.00027397,7]
[340201144,1728831760671,-151.0,0.00027397,7]
[340201145,1728831760693,-279.747653,0.00027397,7]
[340201146,1728831760715,-1250.08,0.00027397,2]
[340201147,1728831760737,-151.0,0.00027397,7]
[340201148,1728831760760,-279.747653,0.00027397,7]
[340201149,1728831760784,-151.0,0.00027397,7]
[340201150,1728831760807,-279.747653,0.00027397,7]
[340201151,1728831760831,-151.0,0.00027397,7]
[340201152,1728831760855,-279.747653,0.00027397,7]
[340201153,1728831760881,-151.0,0.00027397,7]
[340201154,1728831760905,-279.747653,0.00027397,7]
[340201155,1728831760930,-151.0,0.00027397,7]
[340201156,1728831760955,-151.0,0.00027397,7]
[340201157,1728831760978,-500.0,0.00027397,2]
[340201158,1728831761003,-279.747653,0.00027397,7]
[340201159,1728831761029,-151.0,0.00027397,7]
[340201160,1728831761056,-279.747653,0.00027397,7]
[340201161,1728831761079,-151.0,0.00027397,7]
[340201162,1728831761104,-279.747653,0.00027397,7]
[340201163,1728831761129,-151.0,0.00027397,7]
[340201164,1728831761155,-279.747653,0.00027397,7]
[340201165,1728831761179,-151.0,0.00027397,7]
[340201166,1728831761204,-279.747653,0.00027397,7]
[340201167,1728831761228,-151.0,0.00027397,7]
[340201168,1728831761253,-279.747653,0.00027397,7]
[340201169,1728831761280,-156.826037,0.00027397,7]
[340201170,1728831761305,-500.0,0.00027397,2]
[340201171,1728831761329,-500.0,0.00027397,2]
[340201172,1728831761354,-151.0,0.00027397,7]
[340201173,1728831761379,-151.0,0.00027397,7]
[340201174,1728831761406,-151.0,0.00027397,7]
[340201175,1728831761429,-500.0,0.00027397,2]
[340201176,1728831761455,-151.0,0.00027397,7]
[340201177,1728831761478,-151.0,0.00027397,7]
[340201178,1728831761579,-153.459748,0.00027397,7]
[340201179,1728831761603,-550.4008737,0.00027397,2]
[340201180,1728831761627,-545.1557187,0.00027397,2]
[340201181,1728831761650,-503.03881508,0.00027397,2]
[340201182,1728831761672,-151.900565,0.00027397,7]
[340201183,1728831761695,-2000.0,0.00027397,2]
[340201184,1728831761717,-183.743211,0.00027397,7]
[340201185,1728831761741,-183.743211,0.00027397,7]
[340201186,1728831761768,-183.743211,0.00027397,7]
[340201187,1728831761791,-183.743211,0.00027397,7]
[340201188,1728831761812,-183.743211,0.00027397,7]
[340201189,1728831761836,-183.743211,0.00027397,7]
[340201190,1728831761866,-183.743211,0.00027397,7]
[340201191,1728831761889,-183.743211,0.00027397,7]
[340201192,1728831761913,-183.743211,0.00027397,7]
[340201193,1728831761937,-183.743211,0.00027397,7]
[340201194,1728831761961,-183.743211,0.00027397,7]
[340201195,1728831761984,-183.743211,0.00027397,7]
[340201196,1728831762009,-183.743211,0.00027397,7]
[340201197,1728831762033,-551.72667171,0.00027397,2]
[340201198,1728831762056,-183.743211,0.00027397,7]
[340201199,1728831762079,-552.01579773,0.00027397,2]
[340201200,1728831762101,-500.0,0.00027397,2]
[340201201,1728831762124,-158.402721,0.00027397,7]
[340201202,1728831762145,-500.0,0.00027397,2]
[340201203,1728831762168,-500.0,0.00027397,2]
[340201204,1728831762190,-527.25494954,0.00027397,2]
[340201205,1728831762212,-162.04003035,0.00027397,2]
[340201206,1728831762234,-500.0,0.00027397,2]
[340201207,1728831762256,-500.0,0.00027397,2]
[340201208,1728831762279,-151.0,0.00027397,7]
[340201209,1728831762301,-528.90488291,0.00027397,2]
[340201210,1728831762324,-151.0,0.00027397,7]
[340201211,1728831762346,-549.17485798,0.00027397,2]
[340201212,1728831762368,-151.0,0.00027397,7]
[340201213,1728831762390,-151.0,0.00027397,7]
[340201214,1728831762413,-151.0,0.00027397,7]
[340201215,1728831762436,-151.0,0.00027397,7]
[340201216,1728831762458,-151.0,0.00027397,7]
[340201217,1728831762481,-151.0,0.00027397,7]
[340201218,1728831762504,-151.0,0.00027397,7]
[340201219,1728831762528,-151.0,0.00027397,7]
[340201220,1728831762550,-500.0,0.00027397,2]
[340201221,1728831762573,-151.0,0.00027397,7]
[340201222,1728831762594,-507.25036364,0.00027397,2]
[340201223,1728831762618,-212.527792,0.00027397,7]
[340201224,1728831762643,-567.71007976,0.00027397,2]
[340201225,1728831762665,-500.0,0.00027397,2]
[340201226,1728831762688,-500.0,0.00027397,2]
[340201227,1728831762710,-262.60602219,0.00027397,2]
[340201228,1728831762733,-276.274188,0.00027397,7]
[340201229,1728831762756,-276.274188,0.00027397,7]
[340201230,1728831762778,-276.274188,0.00027397,7]
[340201231,1728831762800,-276.274188,0.00027397,7]
[340201232,1728831762822,-276.274188,0.00027397,7]
[340201233,1728831762844,-276.274188,0.00027397,7]
[340201234,1728831762869,-500.0,0.00027397,2]
[340201235,1728831762892,-276.274188,0.00027397,7]
[340201236,1728831762915,-276.274188,0.00027397,7]
[340201237,1728831762936,-276.274188,0.00027397,7]
[340201238,1728831762959,-276.274188,0.00027397,7]
[340201239,1728831762981,-276.274188,0.00027397,7]
[340201240,1728831763003,-276.274188,0.00027397,7]
[340201241,1728831763026,-500.0,0.00027397,2]
[340201242,1728831763048,-500.0,0.00027397,2]
[340201243,1728831763071,-500.0,0.00027397,2]
[340201244,1728831763093,-500.0,0.00027397,2]
[340201245,1728831763187,-500.0,0.00027397,2]
[340201246,1728831763210,-500.0,0.00027397,2]
[340201247,1728831763232,-500.0,0.00027397,2]
[340201248,1728831763254,-500.0,0.00027397,2]
[340201249,1728831763277,-500.0,0.00027397,2]
[340201250,1728831763299,-500.0,0.00027397,2]
[340201251,1728831763321,-358.40521441,0.00027397,2]
[340201252,1728831763343,-579.6587841,0.00027397,2]
[340201253,1728831763365,-151.0,0.00027397,7]
[340201254,1728831763387,-151.0,0.00027397,7]
[340201255,1728831763409,-151.0,0.00027397,7]
[340201256,1728831763430,-151.0,0.00027397,7]
[340201257,1728831763452,-500.0,0.00027397,2]
[340201258,1728831763474,-151.0,0.00027397,7]
[340201259,1728831763497,-151.0,0.00027397,7]
[340201260,1728831763521,-225.18265986,0.00027397,2]
[340201261,1728831763542,-507.62261026,0.00027397,2]
[340201262,1728831763565,-474.209379,0.00027397,7]
[340201263,1728831763588,-474.209379,0.00027397,7]
[340201264,1728831763610,-474.209379,0.00027397,7]
[340201265,1728831763632,-474.209379,0.00027397,7]
[340201266,1728831763655,-500.0,0.00027397,2]
[340201267,1728831763677,-474.209379,0.00027397,7]
[340201268,1728831763699,-556.12612333,0.00027397,2]
[340201269,1728831763721,-474.209379,0.00027397,7]
[340201270,1728831763743,-474.209379,0.00027397,7]
[340201271,1728831763765,-474.209379,0.00027397,7]
[340201272,1728831763789,-474.209379,0.00027397,7]
[340201273,1728831763811,-356.02125151,0.00027397,2]
[340201274,1728831763833,-500.0,0.00027397,2]
[340201275,1728831763856,-474.209379,0.00027397,7]
[340201276,1728831763882,-474.209379,0.00027397,7]
[340201277,1728831763905,-474.209379,0.00027397,7]
[340201278,1728831763928,-474.209379,0.00027397,7]
[340201279,1728831763954,-474.209379,0.00027397,7]
[340201280,1728831763976,-375.560841,0.00027397,7]
[340201281,1728831763999,-375.560841,0.00027397,7]
[340201282,1728831764023,-375.560841,0.00027397,7]
[340201283,1728831764047,-375.560841,0.00027397,7]
[340201284,1728831764069,-375.560841,0.00027397,7]
[340201285,1728831764092,-375.560841,0.00027397,7]
[340201286,1728831764116,-151.0,0.00027397,7]
[340201287,1728831764139,-151.0,0.00027397,7]
[340201288,1728831764164,-151.0,0.00027397,7]
[340201289,1728831764189,-151.0,0.00027397,7]
[340201290,1728831764215,-151.0,0.00027397,7]
[340201291,1728831764240,-375.560841,0.00027397,7]
[340201292,1728831764264,-151.0,0.00027397,7]
[340201293,1728831764288,-375.560841,0.00027397,7]
[340201294,1728831764311,-375.560841,0.00027397,7]
[340201295,1728831764333,-375.560841,0.00027397,7]
[340201296,1728831764354,-375.560841,0.00027397,7]
[340201297,1728831764376,-151.0,0.00027397,7]
[340201298,1728831764398,-375.560841,0.00027397,7]
[340201299,1728831764420,-151.0,0.00027397,7]
[340201300,1728831764443,-151.0,0.00027397,7]
[340201301,1728831764465,-151.0,0.00027397,7]
[340201302,1728831764488,-151.0,0.00027397,7]
[340201303,1728831764510,-151.0,0.00027397,7]
[340201304,1728831764532,-151.0,0.00027397,7]
[340201305,1728831764554,-162.143744,0.00027397,7]
[340201306,1728831764576,-171.34166217,0.00027397,2]
[340201307,1728831764597,-419.05014871,0.00027397,2]
[340201308,1728831764619,-500.0,0.00027397,2]
[340201309,1728831764644,-500.0,0.00027397,2]
[340201310,1728831764741,-500.0,0.00027397,2]
[340201311,1728831764764,-500.0,0.00027397,2]
[340201312,1728831764791,-532.13236861,0.00027397,2]
[340201313,1728831764818,-342.30222038,0.00027397,2]
[340201314,1728831764845,-1292.79,0.00027397,2]
[340201315,1728831764872,-500.0,0.00027397,2]
[340201316,1728831764897,-151.0,0.00027397,7]
[340201317,1728831764923,-500.0,0.00027397,2]
[340201318,1728831764948,-151.0,0.00027397,7]
[340201319,1728831764973,-151.0,0.00027397,7]
[340201320,1728831764995,-151.0,0.00027397,7]
[340201321,1728831765018,-151.0,0.00027397,7]
[340201322,1728831765043,-151.0,0.00027397,7]
[340201323,1728831765067,-151.0,0.00027397,7]
[340201324,1728831765092,-332.05885399,0.00027397,2]
[340201325,1728831765117,-151.0,0.00027397,7]
[340201326,1728831765142,-560.95124384,0.00027397,2]
[340201327,1728831765168,-151.0,0.00027397,7]
[340201328,1728831765193,-151.0,0.00027397,7]
[340201329,1728831765220,-166.30229957,0.00027397,2]
[340201330,1728831765244,-500.0,0.00027397,2]
[340201331,1728831765269,-520.48382836,0.00027397,2]
[340201332,1728831765295,-197.35712859,0.00027397,2]
[340201333,1728831765320,-151.0,0.00027397,7]
[340201334,1728831765343,-151.0,0.00027397,7]
[340201335,1728831765367,-151.0,0.00027397,7]
[340201336,1728831765392,-179.408732,0.00027397,7]
[340201337,1728831765418,-164.98957508,0.00027397,2]
[340201338,1728831765443,-500.0,0.00027397,2]
[340201339,1728831765466,-573.2649613,0.00027397,2]
[340201340,1728831765491,-290.66635936,0.00027397,2]
[340201341,1728831765514,-500.0,0.00027397,2]
[340201342,1728831765537,-500.0,0.00027397,2]
[340201343,1728831765562,-8756.94,0.00027397,2]
[340201344,1728831765587,-500.0,0.00027397,2]
[340201345,1728831765609,-573.74200867,0.00027397,2]
[340201346,1728831765633,-156.3484763,0.00027397,2]
[340201347,1728831765657,-500.0,0.00027397,2]
[340201348,1728831765680,-500.0,0.00027397,2]
[340201349,1728831765700,-213.80886441,0.00027397,2]
[340201350,1728831765723,-598.60442733,0.00027397,2]
[340201351,1728831765745,-221.62682436,0.00027397,2]
[340201352,1728831765769,-151.0,0.00027397,7]
[340201353,1728831765791,-151.0,0.00027397,7]
[340201354,1728831765813,-512.5567681,0.00027397,2]
[340201355,1728831765834,-727.88,0.00027397,2]
[340201356,1728831765859,-153.46939193,0.00027397,2]
[340201357,1728831765885,-500.0,0.00027397,2]
[340201358,1728831765908,-151.0,0.00027397,7]
[340201359,1728831765931,-517.41513424,0.00027397,2]
[340201360,1728831765955,-151.0,0.00027397,7]
[340201361,1728831765978,-151.0,0.00027397,7]
[340201362,1728831766000,-151.0,0.00027397,7]
[340201363,1728831766024,-2184.27,0.00027397,2]
[340201364,1728831766046,-521.03567613,0.00027397,2]
[340201365,1728831766068,-621.12543238,0.00027397,2]
[340201366,1728831766090,-151.0,0.00027397,2]
[340201367,1728831766111,-151.0,0.00027397,2]
[340201368,1728831766133,-577.92,0.00027397,2]
[340201369,1728831766156,-151.0,0.00027397,2]
[340201370,1728831766179,-151.0,0.00027397,2]
[340201371,1728831766203,-155.940852,0.00027397,2]
[340201372,1728831766320,-474.97156623,0.00027397,2]
[340201373,1728831766345,-166.19518864,0.00027397,2]
[340201374,1728831766372,-500.0,0.00027397,2]
[340201375,1728831766397,-500.0,0.00027397,2]
[340201376,1728831766419,-224.24277896,0.00027397,2]
[340201377,1728831766441,-150.16092157,0.00027397,2]
[340201378,1728831766463,-500.0,0.00027397,2]
[340201379,1728831766486,-500.0,0.00027397,2]
[340201380,1728831766509,-500.0,0.00027397,2]
[340201381,1728831766535,-557.42206419,0.00027397,2]
[340201382,1728831766559,-500.0,0.00027397,2]
[340201383,1728831766582,-500.0,0.00027397,2]
[340201384,1728831766606,-500.0,0.00027397,2]
[340201385,1728831766630,-341.95742165,0.00027397,2]
[340201386,1728831766654,-500.0,0.00027397,2]
[340201387,1728831766677,-500.0,0.00027397,2]
[340201388,1728831766699,-500.0,0.00027397,2]
[340201389,1728831766721,-500.0,0.00027397,2]
[340201390,1728831766743,-500.0,0.00027397,2]
[340201391,1728831766766,-500.0,0.00027397,2]
[340201392,1728831766790,-500.0,0.00027397,2]
[340201393,1728831766815,-500.0,0.00027397,2]
[340201394,1728831766839,-500.0,0.00027397,2]
[340201395,1728831766865,-500.0,0.00027397,2]
[340201396,1728831766890,-500.0,0.00027397,2]
[340201397,1728831766916,-500.0,0.00027397,2]
[340201398,1728831766940,-500.0,0.00027397,2]
[340201399,1728831766964,-500.0,0.00027397,2]
[340201400,1728831766991,-500.0,0.00027397,2]
[340201401,1728831767015,-241.43601245,0.00027397,2]
[340201402,1728831767043,-500.0,0.00027397,2]
[340201403,1728831767068,-500.0,0.00027397,2]
[340201404,1728831767093,-1757.49,0.00027397,2]
[340201405,1728831767117,-500.0,0.00027397,2]
[340201406,1728831767144,-540.32605616,0.00027397,2]
[340201407,1728831767168,-500.0,0.00027397,2]
[340201408,1728831767193,-423.28401724,0.00027397,2]
[340201409,1728831767216,-500.0,0.00027397,2]
[340201410,1728831767240,-500.0,0.00027397,2]
[340201411,1728831767265,-500.0,0.00027397,2]
[340201412,1728831767292,-212.77104864,0.00027397,2]
[340201413,1728831767315,-153.77194057,0.00027397,2]
[340201414,1728831767339,-561.03215799,0.00027397,2]
[340201415,1728831767366,-155.13784315,0.00027397,2]
[340201416,1728831767393,-320.56745494,0.00027397,2]
[340201417,1728831767417,-500.0,0.00027397,2]
[340201418,1728831767439,-3467.84,0.00027397,2]
[340201419,1728831767461,-500.0,0.00027397,2]
[340201420,1728831767483,-3467.84,0.00027397,2]
[340201421,1728831767505,-3467.84,0.00027397,2]
[340201422,1728831767529,-3467.84,0.00027397,2]
[340201423,1728831767551,-151.0,0.00027397,7]
[340201424,1728831767574,-3467.84,0.00027397,2]
[340201425,1728831767597,-151.0,0.00027397,7]
[340201426,1728831767619,-3467.84,0.00027397,2]
[340201427,1728831767641,-3467.84,0.00027397,2]
[340201428,1728831767664,-3467.84,0.00027397,2]
[340201429,1728831767687,-151.0,0.00027397,7]
[340201430,1728831767710,-3467.84,0.00027397,2]
[340201431,1728831767732,-3467.84,0.00027397,2]
[340201432,1728831767844,-151.0,0.00027397,7]
[340201433,1728831767868,-3467.84,0.00027397,2]
[340201434,1728831767891,-151.0,0.00027397,7]
[340201435,1728831767914,-3467.84,0.00027397,2]
[340201436,1728831767938,-3467.84,0.00027397,2]
[340201437,1728831767962,-151.0,0.00027397,7]
[340201438,1728831767986,-3467.84,0.00027397,2]
[340201439,1728831768009,-151.0,0.00027397,7]
[340201440,1728831768034,-3467.84,0.00027397,2]
[340201441,1728831768058,-3467.84,0.00027397,2]
[340201442,1728831768081,-3467.84,0.00027397,2]
[340201443,1728831768105,-3467.84,0.00027397,2]
[340201444,1728831768129,-3467.84,0.00027397,2]
[340201445,1728831768152,-3467.84,0.00027397,2]
[340201446,1728831768177,-3467.84,0.00027397,2]
[340201447,1728831768202,-3467.84,0.00027397,2]
[340201448,1728831768225,-3467.84,0.00027397,2]
[340201449,1728831768250,-3467.85892472,0.00027397,2]
[340201450,1728831768275,-196.65617945,0.00027397,2]
[340201451,1728831768298,-579.78880189,0.00027397,2]
[340201452,1728831768322,-503.7799624,0.00027397,2]
[340201453,1728831768345,-500.0,0.00027397,2]
[340201454,1728831768369,-193.26206691,0.00027397,2]
[340201455,1728831768392,-231.19693935,0.00027397,2]
[340201456,1728831768415,-500.0,0.00027397,2]
[340201457,1728831768438,-500.0,0.00027397,2]
[340201458,1728831768461,-500.0,0.00027397,2]
[340201459,1728831768485,-151.0,0.00027397,7]
[340201460,1728831768508,-645.70711421,0.00027397,2]
[340201461,1728831768532,-500.0,0.00027397,2]
[340201462,1728831768554,-500.0,0.00027397,2]
[340201463,1728831768577,-151.0,0.00027397,7]
[340201464,1728831768600,-151.0,0.00027397,7]
[340201465,1728831768624,-437.56343428,0.00027397,2]
[340201466,1728831768647,-151.0,0.00027397,7]
[340201467,1728831768671,-151.0,0.00027397,7]
[340201468,1728831768693,-151.0,0.00027397,7]
[340201469,1728831768716,-151.0,0.00027397,7]
[340201470,1728831768740,-151.0,0.00027397,7]
[340201471,1728831768762,-151.0,0.00027397,7]
[340201472,1728831768787,-151.0,0.00027397,7]
[340201473,1728831768812,-151.0,0.00027397,7]
[340201474,1728831768836,-151.0,0.00027397,7]
[340201475,1728831768862,-151.0,0.00027397,7]
[340201476,1728831768885,-35388.0,0.00027397,2]
[340201477,1728831768909,-151.0,0.00027397,7]
[340201478,1728831768933,-500.0,0.00027397,2]
[340201479,1728831768957,-547.79438167,0.00027397,2]
[340201480,1728831768981,-586.35549014,0.00027397,2]
[340201481,1728831769006,-486.76643586,0.00027397,2]
[340201482,1728831769033,-212.42579064,0.00027397,2]
[340201483,1728831769058,-500.0,0.00027397,2]
[340201484,1728831769082,-500.0,0.00027397,2]
[340201485,1728831769106,-151.0,0.00027397,7]
[340201486,1728831769130,-151.0,0.00027397,7]
[340201487,1728831769167,-151.0,0.00027397,7]
[340201488,1728831769193,-151.0,0.00027397,7]
[340201489,1728831769218,-151.0,0.00027397,7]
[340201490,1728831769345,-202.810535,0.00027397,7]
[340201491,1728831769369,-629.80402473,0.00027397,2]
[340201492,1728831769393,-500.0,0.00027397,2]
[340201493,1728831769415,-500.0,0.00027397,2]
[340201494,1728831769438,-500.0,0.00027397,2]
[340201495,1728831769461,-539.2,0.00027397,2]
[340201496,1728831769484,-524.88209634,0.00027397,2]
[340201497,1728831769506,-500.0,0.00027397,2]
[340201498,1728831769530,-151.0,0.00027397,7]
[340201499,1728831769553,-151.0,0.00027397,7]
[340201500,1728831769576,-151.0,0.00027397,7]
[340201501,1728831769598,-151.0,0.00027397,7]
[340201502,1728831769620,-172.031048,0.00027397,7]
[340201503,1728831769644,-500.0,0.00027397,2]
[340201504,1728831769666,-360.196016,0.00027397,2]
[340201505,1728831769688,-150.112233,0.000274,6]
[340201506,1728831769711,-150.112233,0.000274,5]
[340201507,1728831769735,-150.112233,0.000274,5]
[340201508,1728831769758,-603.750482,0.000274,7]
[340201509,1728831769780,-603.750482,0.000274,7]
[340201510,1728831769808,-150.112233,0.000274,9]
[340201511,1728831769830,-150.112233,0.000274,6]
[340201512,1728831769855,-150.112233,0.000274,6]
[340201513,1728831769880,-150.112233,0.000274,5]
[340201514,1728831769905,-250.0,0.00027421,2]
[340201515,1728831769931,-9503.51346087,0.0002749,4]
[340201516,1728831769957,-250.0,0.00027493,2]
[340201517,1728831769979,-24275.30632518,0.000275,2]
[340201518,1728831770003,-151.0,0.000275,7]
[340201519,1728831770030,-151.0,0.000275,7]
[340201520,1728831770054,-307.697835,0.000275,7]
[340201521,1728831770077,-151.0,0.000275,7]
[340201522,1728831770101,-164.691908,0.000275,7]
[340201523,1728831770124,-164.691908,0.000275,7]
[340201524,1728831770146,-151.0,0.000275,7]
[340201525,1728831770170,-156.521876,0.000275,7]
[340201526,1728831770194,-156.521876,0.000275,7]
[340201527,1728831770217,-279.747653,0.000275,7]
[340201528,1728831770241,-279.747653,0.000275,7]
[340201529,1728831770264,-151.0,0.000275,7]
[340201530,1728831770287,-276.274188,0.000275,7]
[340201531,1728831770310,-276.274188,0.000275,7]
[340201532,1728831770336,-151.0,0.000275,7]
[340201533,1728831770360,-375.560841,0.000275,7]
[340201534,1728831770384,-151.0,0.000275,7]
[340201535,1728831770408,-375.560841,0.000275,7]
[340201536,1728831770431,-259.29235094,0.000275,7]
[340201537,1728831770457,-250.0,0.00027566,2]
[340201538,1728831770480,-150.112236,0.000276,5]
[340201539,1728831770503,-150.112233,0.000276,7]
[340201540,1728831770527,-150.112233,0.000276,8]
[340201541,1728831770551,-250.0,0.00027638,2]
[340201542,1728831770574,-19007.0269217,0.00027661,4]
[340201543,1728831770597,-151.0,0.00027671,7]
[340201544,1728831770621,-151.0,0.00027671,7]
[340201545,1728831770643,-500.0,0.00027671,2]
[340201546,1728831770744,-203.77210484,0.00027671,2]
[340201547,1728831770767,-500.0,0.00027671,2]
[340201548,1728831770796,-1088.75,0.00027671,2]
[340201549,1728831770818,-500.0,0.00027671,2]
[340201550,1728831770841,-500.0,0.00027671,2]
[340201551,1728831770866,-500.0,0.00027671,2]
[340201552,1728831770890,-500.0,0.00027671,2]
[340201553,1728831770913,-198.481123,0.00027671,7]
[340201554,1728831770937,-198.481123,0.00027671,7]
[340201555,1728831770963,-500.0,0.00027671,2]
[340201556,1728831770989,-500.0,0.00027671,2]
[340201557,1728831771013,-151.0,0.00027671,7]
[340201558,1728831771038,-500.0,0.00027671,2]
[340201559,1728831771061,-500.0,0.00027671,2]
[340201560,1728831771086,-203.59648359,0.00027671,2]
[340201561,1728831771111,-254.80506845,0.00027671,2]
[340201562,1728831771135,-500.0,0.00027671,2]
[340201563,1728831771159,-164.691908,0.00027671,7]
[340201564,1728831771185,-164.691908,0.00027671,7]
[340201565,1728831771212,-603.750482,0.00027671,7]
[340201566,1728831771237,-261.20641156,0.00027671,2]
[340201567,1728831771261,-603.750482,0.00027671,7]
[340201568,1728831771290,-603.750482,0.00027671,7]
[340201569,1728831771314,-603.750482,0.00027671,7]
[340201570,1728831771337,-500.0,0.00027671,2]
[340201571,1728831771360,-197.6368314,0.00027671,2]
[340201572,1728831771384,-151.0,0.00027671,7]
[340201573,1728831771407,-183.12823941,0.00027671,2]
[340201574,1728831771429,-500.59298068,0.00027671,2]
[340201575,1728831771453,-156.521876,0.00027671,7]
[340201576,1728831771477,-156.521876,0.00027671,7]
[340201577,1728831771500,-500.0,0.00027671,2]
[340201578,1728831771525,-500.0,0.00027671,2]
[340201579,1728831771547,-1250.08,0.00027671,2]
[340201580,1728831771572,-279.747653,0.00027671,7]
[340201581,1728831771596,-151.0,0.00027671,7]
[340201582,1728831771619,-151.0,0.00027671,7]
[340201583,1728831771643,-500.0,0.00027671,2]
[340201584,1728831771666,-539.74004337,0.00027671,2]
[340201585,1728831771691,-279.747653,0.00027671,7]
[340201586,1728831771714,-500.0,0.00027671,2]
[340201587,1728831771739,-500.0,0.00027671,2]
[340201588,1728831771762,-2000.0,0.00027671,2]
[340201589,1728831771787,-183.743211,0.00027671,7]
[340201590,1728831771811,-183.743211,0.00027671,7]
[340201591,1728831771836,-183.743211,0.00027671,7]
[340201592,1728831771863,-183.743204,0.00027671,7]
[340201593,1728831771888,-500.0,0.00027671,2]
[340201594,1728831771914,-500.0,0.00027671,2]
[340201595,1728831771941,-500.0,0.00027671,2]
[340201596,1728831771966,-645.20568078,0.00027671,2]
[340201597,1728831771989,-514.62586278,0.00027671,2]
[340201598,1728831772012,-151.0,0.00027671,7]
[340201599,1728831772107,-545.44720399,0.00027671,2]
[340201600,1728831772134,-501.85708738,0.00027671,2]
[340201601,1728831772159,-276.274188,0.00027671,7]
[340201602,1728831772185,-276.274188,0.00027671,7]
[340201603,1728831772208,-500.0,0.00027671,2]
[340201604,1728831772232,-505.60251081,0.00027671,2]
[340201605,1728831772256,-274.432926,0.00027671,7]
[340201606,1728831772283,-500.0,0.00027671,2]
[340201607,1728831772309,-474.209379,0.00027671,7]
[340201608,1728831772333,-474.209379,0.00027671,7]
[340201609,1728831772357,-500.0,0.00027671,2]
[340201610,1728831772380,-474.209379,0.00027671,7]
[340201611,1728831772403,-474.209371,0.00027671,7]
[340201612,1728831772426,-375.560841,0.00027671,7]
[340201613,1728831772450,-151.0,0.00027671,7]
[340201614,1728831772474,-375.560841,0.00027671,7]
[340201615,1728831772497,-501.6063029,0.00027671,2]
[340201616,1728831772519,-500.0,0.00027671,2]
[340201617,1728831772545,-1292.79,0.00027671,2]
[340201618,1728831772568,-500.0,0.00027671,2]
[340201619,1728831772592,-375.59169696,0.00027671,2]
[340201620,1728831772615,-500.0,0.00027671,2]
[340201621,1728831772639,-8756.94,0.00027671,2]
[340201622,1728831772661,-500.0,0.00027671,2]
[340201623,1728831772684,-727.88,0.00027671,2]
[340201624,1728831772707,-500.0,0.00027671,2]
[340201625,1728831772730,-2184.27,0.00027671,2]
[340201626,1728831772753,-577.92,0.00027671,2]
[340201627,1728831772778,-500.0,0.00027671,2]
[340201628,1728831772801,-500.0,0.00027671,2]
[340201629,1728831772824,-1757.49,0.00027671,2]
[340201630,1728831772848,-500.0,0.00027671,2]
[340201631,1728831772872,-500.0,0.00027671,2]
[340201632,1728831772895,-500.0,0.00027671,2]
[340201633,1728831772919,-500.0,0.00027671,2]
[340201634,1728831772943,-151.0,0.00027671,7]
[340201635,1728831772968,-154.427562,0.00027671,7]
[340201636,1728831772991,-500.0,0.00027671,2]
[340201637,1728831773018,-500.0,0.00027671,2]
[340201638,1728831773044,-237.29148,0.00027671,2]
[340201639,1728831773069,-500.0,0.00027671,2]
[340201640,1728831773093,-151.0,0.00027671,7]
[340201641,1728831773117,-151.0,0.00027671,7]